fUST/lending_fUST_20250410
["ID","MTS","AMOUNT","RATE_DAILY","PERIOD"]
[357664181,1744296648111,-419.64641374,0.00031,120]
[357664880,1744296656234,-211.0,0.00022,90]
[357666017,1744296671991,-762.17789449,0.00027397,60]
[357666018,1744296672026,-1000.0,0.0003,60]
[357666019,1744296681150,-419.56135214,0.00026,30]
[357666020,1744296681186,-210.01,0.000266,31]
[357666021,1744296681221,-210.01,0.000266,31]
[357666022,1744296681251,-210.01,0.000266,31]
[357666023,1744296681283,-210.01,0.000266,31]
[357666024,1744296681314,-210.01,0.000266,31]
[357666025,1744296681351,-210.01,0.000266,31]
[357666026,1744296681384,-210.01,0.000266,31]
[357666027,1744296681417,-210.01,0.000266,31]
[357666028,1744296681452,-210.01,0.000266,31]
[357666029,1744296681626,-210.01,0.000266,31]
[357666030,1744296681658,-210.01,0.000266,31]
[357666031,1744296681691,-210.01,0.000266,31]
[357666032,1744296681720,-814.31001178,0.000275,30]
[357666033,1744296681747,-516.29,0.00028,30]
[357666034,1744296681781,-210.01,0.000287,31]
[357666035,1744296681812,-210.01,0.000287,31]
[357666036,1744296681842,-210.01,0.000287,31]
[357666037,1744296681876,-210.01,0.000287,31]
[357666038,1744296681909,-210.01,0.000287,31]
[357666039,1744296681941,-210.01,0.000287,31]
[357666040,1744296681975,-210.01,0.000287,31]
[357666041,1744296682010,-210.01,0.000287,31]
[357666042,1744296682046,-210.01,0.000287,31]
[357666043,1744296682082,-210.01,0.000287,31]
[357666044,1744296682118,-210.01,0.000287,31]
[357666045,1744296682153,-210.01,0.000287,31]
[357666046,1744296682191,-210.01,0.000287,31]
[357666047,1744296682225,-210.01,0.000287,31]
[357666048,1744296682259,-210.01,0.000287,31]
[357666049,1744296682293,-210.01,0.000287,31]
[357666050,1744296682326,-99.42671731,0.000287,31]
[357666051,1744296685630,-232.25495603,0.00015007,2]
[357666052,1744296753567,-300.0,0.00015006,2]
[357666053,1744296784369,-225.92606092,0.00015005,2]
[357666054,1744296818927,159.974882,0.00014231,2]
[357666055,1744296877727,-193.2661,0.00015005,2]
[357666058,1744296903509,-164.24057411,0.00015004,2]
[357666059,1744296922794,-135.75942589,0.00015004,2]
[357666060,1744296922819,-102.54608211,0.00015005,2]
[357666061,1744296999909,-200.0,0.00015004,2]
[357666062,1744296999935,-51.14950577,0.00015004,2]
[357666063,1744297001974,-251.14950577,0.00015004,2]
[357666064,1744297025571,-151.10456751,0.00015003,2]
[357666067,1744297086832,-175.31347148,0.00015003,2]
[357666070,1744297116944,-154.9368,0.00015003,2]
[357666071,1744297122970,-154.9368,0.00015003,2]
[357666072,1744297133519,-190.1264,0.00015003,2]
[357666073,1744297133551,-109.8736,0.00015003,2]
[357666115,1744297144105,-300.0,0.00015002,2]
[357666250,1744297204201,-201.14950577,0.00015002,2]
[357666251,1744297238376,-250.90515104,0.00015002,2]
[357666252,1744297263320,300.0,0.00015001,2]
[357666253,1744297302054,239.8712273,0.00014225,2]
[357666254,1744297323155,-158.56468884,0.00015002,2]
[357666256,1744297326131,300.0,0.00015001,2]
[357666259,1744297328434,-175.9051293,0.00015002,2]
[357666283,1744297351947,588.01529043,0.00015001,2]
[357666284,1744297352021,500.0,0.00015001,2]
[357666285,1744297352123,500.0,0.00015001,2]
[357666286,1744297352194,500.0,0.00015001,2]
[357666287,1744297352291,500.0,0.00015001,2]
[357666288,1744297352341,500.0,0.00015001,2]
[357666290,1744297352650,500.0,0.00015001,2]
[357666291,1744297352727,500.0,0.00015001,2]
[357666292,1744297352876,500.0,0.00015001,2]
[357666293,1744297352916,287.32550516,0.00015001,2]
[357666294,1744297352952,500.0,0.00015001,2]
[357666295,1744297352997,500.0,0.00015001,2]
[357666296,1744297353046,500.0,0.00015001,2]
[357666297,1744297353086,500.0,0.00015001,2]
[357666298,1744297353128,500.0,0.00015001,2]
[357666299,1744297353172,500.0,0.00015001,2]
[357666300,1744297353215,500.0,0.00015001,2]
[357666301,1744297353250,-212.2759014,0.00015002,2]
[357666309,1744297356482,238.305508,0.00014158,2]
[357666394,1744297783081,10000.0,0.00015001,2]
[357666395,1744297785154,500.957625,0.00014183,2]
[357666437,1744297832135,-300.0,0.00015104,2]
[357666439,1744297832145,-365.25838946,0.00015112,2]
[357666441,1744297832155,-500.0,0.00015112,2]
[357666443,1744297832166,-300.0,0.00015113,2]
[357666445,1744297832176,-250.0,0.00015114,2]
[357666447,1744297832191,-7267.95123816,0.00015114,2]
[357666449,1744297832203,-1395.55318483,0.00015192,2]
[357666451,1744297832212,-313.98082191,0.00015213,2]
[357666453,1744297832223,-37259.63774251,0.00015214,2]
[357666455,1744297832235,-7116.4597546,0.00015214,2]
[357666460,1744297832264,-468.04,0.00015214,2]
[357666502,1744297838237,-6185.38376307,0.00015214,2]
[357666560,1744297840454,-416.65490336,0.00015214,2]
[357666578,1744297843218,-632.02137047,0.00015214,2]
[357666626,1744297846352,-1597.8,0.00015214,2]
[357667152,1744297870921,612.93,0.00010959,2]
[357667153,1744297909330,-152.394547,0.00015004,2]
[357667175,1744298128315,388.1810307,0.00014492,2]
[357667176,1744298128940,-59.68590149,0.00015004,2]
[357667220,1744298351942,156.154285,0.0001764,10]
[357667222,1744298364261,158.5646888,0.00014631,2]
[357667223,1744298408859,301.601445,0.00014492,2]
[357667228,1744298522661,3448.1500166,0.00014708,2]
[357667256,1744298837216,-250.0,0.00015113,2]
[357667274,1744298847830,-161.22101903,0.00015206,2]
[357667275,1744298847864,-500.0,0.00015206,2]
[357667276,1744298847897,-186.77898097,0.00015206,2]
[357667284,1744298892421,-164.1933,0.00015013,2]
[357667328,1744299037700,-85.8067,0.00015013,2]
[357667329,1744299037711,-399.78702242,0.00015212,2]
[357667330,1744299037721,-500.0,0.00015212,2]
[357667331,1744299037731,-234.8963499,0.00015213,2]
[357667332,1744299037741,-334.10078409,0.00015213,2]
[357667333,1744299037751,-500.0,0.00015213,2]
[357667334,1744299037762,-319.78657534,0.00015213,2]
[357667335,1744299037772,-205.654621,0.00015213,2]
[357667336,1744299037782,-300.0,0.00015213,2]
[357667337,1744299037792,-1150.87245089,0.00015214,2]
[357667339,1744299037809,-19191.08880282,0.00015214,2]
[357667350,1744299037911,-297.29243099,0.00015214,2]
[357667358,1744299038546,-8051.79148713,0.00015214,2]
[357667366,1744299038709,-7547.99196023,0.00015214,2]
[357667403,1744299045363,-13721.58364071,0.00015214,2]
[357667405,1744299045374,-1221.10903677,0.00015669,2]
[357667407,1744299045386,-159.10025246,0.00015769,2]
[357667410,1744299045397,-2129.1278267,0.00015769,2]
[357667412,1744299045409,-189.4168027,0.00015944,2]
[357667414,1744299045419,-153.28035787,0.00016328,2]
[357667416,1744299045430,-153.28035787,0.00016331,2]
[357667417,1744299045441,-153.28035787,0.00016333,2]
[357667420,1744299045452,-153.28035787,0.00016336,2]
[357667421,1744299045463,-153.28035787,0.00016338,2]
[357667424,1744299045474,-1000.0,0.00016399,2]
[357667425,1744299045484,-22184.3359965,0.000164,2]
[357667428,1744299045495,-151.0,0.00016428,2]
[357667429,1744299045505,-200.0,0.00016428,2]
[357667432,1744299045515,-1221.10903671,0.0001643,2]
[357667434,1744299045527,-37381.81561808,0.00016437,2]
[357667462,1744299045794,-4811.09074548,0.00016437,2]
[357667463,1744299045811,-1665.67784916,0.00016437,2]
[357667544,1744299047625,-1195.46,0.00016437,2]
[357667545,1744299047651,-331.20984729,0.00016437,2]
[357667546,1744299047719,-80194.12048081,0.00016437,2]
[357667548,1744299128701,-151.0,0.00015112,2]
[357667569,1744299190095,199.29166671,0.00014913,2]
[357667570,1744299359014,-609.38157267,0.00015011,2]
[357667571,1744299368298,-207.9620035,0.00015006,2]
[357667592,1744299449539,24582.5527784,0.00014136,2]
[357667593,1744299504689,499.4608502,0.00014335,2]
[357667594,1744299505571,-300.0,0.00015006,2]
[357667595,1744299513032,-183.8779309,0.00015004,2]
[357667596,1744299543156,-200.0,0.00015003,2]
[357667599,1744299556910,-100.0,0.00015003,2]
[357667600,1744299556935,-177.7817906,0.00015003,2]
[357667601,1744299559505,-122.2182094,0.00015003,2]
[357667602,1744299559531,-103.82603206,0.00015004,2]
[357667604,1744299568203,183.8779309,0.00014906,2]
[357667607,1744299634654,-191.72352887,0.00015005,2]
[357667610,1744299732814,1000.0,0.00025,120]
[357667615,1744299736072,-192.70139468,0.00015005,2]
[357667628,1744299744248,-115.57507645,0.00015005,2]
[357667629,1744299744274,-68.30285445,0.00015005,2]
[357667634,1744299750725,-121.09030624,0.00015005,2]
[357667635,1744299750750,-61.71911459,0.00015005,2]
[357667636,1744299782381,1292.02832281,0.00014905,2]
[357667637,1744299782948,-300.0,0.00015004,2]
[357667638,1744299782972,-28.00538648,0.00015005,2]
[357667645,1744299873046,-185.18988755,0.00015003,2]
[357667693,1744299965165,-250.0,0.00015002,2]
[357667726,1744299988242,1130.52478245,0.00014903,2]
[357667729,1744299991924,-50.0,0.00015002,2]
[357667730,1744299991948,-125.2567,0.00015003,2]
[357667737,1744300023692,300.0,0.00015001,2]
[357667738,1744300024888,571.610124,0.00014821,2]
[357667797,1744300082401,300.0,0.00015001,2]
[357667801,1744300112131,-217.7256521,0.00015001,2]
[357667803,1744300115815,334.4698181,0.0001494,2]
[357667804,1744300116475,-282.2743479,0.00015001,2]
[357667805,1744300116504,-17.7256521,0.00015001,2]
[357667808,1744300117569,-184.99708714,0.00015001,2]
[357667809,1744300117593,-115.00291286,0.00015001,2]
[357667815,1744300143509,300.0,0.00015,2]
[357667830,1744300179690,989.20918467,0.00014901,2]
[357667832,1744300183209,-177.00922822,0.00015001,2]
[357667834,1744300203310,300.0,0.00015,2]
[357667848,1744300232624,-17.24648274,0.00015001,2]
[357667849,1744300232634,-380.50851726,0.00015001,2]
[357667852,1744300232662,-62.850872,0.00015001,2]
[357667854,1744300232672,-500.0,0.00015001,2]
[357667855,1744300232681,-500.0,0.00015001,2]
[357667857,1744300232690,-500.0,0.00015001,2]
[357667858,1744300232700,-500.0,0.00015001,2]
[357667860,1744300232709,-500.0,0.00015001,2]
[357667862,1744300232719,-500.0,0.00015001,2]
[357667864,1744300232729,-500.0,0.00015001,2]
[357667865,1744300232738,-500.0,0.00015001,2]
[357667867,1744300232748,-500.0,0.00015001,2]
[357667868,1744300232758,-500.0,0.00015001,2]
[357667869,1744300232767,-500.0,0.00015001,2]
[357667871,1744300232778,-500.0,0.00015001,2]
[357667873,1744300232787,-500.0,0.00015001,2]
[357667874,1744300232798,-500.0,0.00015001,2]
[357667875,1744300232807,-500.0,0.00015001,2]
[357667876,1744300232817,-500.0,0.00015001,2]
[357667877,1744300232827,-114.99417577,0.00015001,2]
[357667879,1744300232839,-255.90531252,0.00015001,2]
[357667880,1744300232850,-129.10051171,0.00015001,2]
[357667881,1744300232860,-500.0,0.00015001,2]
[357667882,1744300232869,-424.0523557,0.00015001,2]
[357667883,1744300232879,-500.0,0.00015001,2]
[357667884,1744300232889,-500.0,0.00015001,2]
[357667885,1744300232899,-500.0,0.00015001,2]
[357667886,1744300232909,-500.0,0.00015001,2]
[357667887,1744300232918,-500.0,0.00015001,2]
[357667888,1744300232928,-500.0,0.00015001,2]
[357667889,1744300232938,-500.0,0.00015001,2]
[357667890,1744300232947,-340.43522806,0.00015001,2]
[357667891,1744300232956,-500.0,0.00015001,2]
[357667892,1744300232966,-500.0,0.00015001,2]
[357667893,1744300232976,-500.0,0.00015001,2]
[357667894,1744300232985,-500.0,0.00015001,2]
[357667895,1744300232995,-500.0,0.00015001,2]
[357667896,1744300233004,-500.0,0.00015001,2]
[357667897,1744300233014,-500.0,0.00015001,2]
[357667898,1744300233023,-500.0,0.00015001,2]
[357667899,1744300233037,-500.0,0.00015001,2]
[357667900,1744300233047,-500.0,0.00015001,2]
[357667901,1744300233057,-500.0,0.00015001,2]
[357667902,1744300233068,-500.0,0.00015001,2]
[357667903,1744300233078,-500.0,0.00015001,2]
[357667904,1744300233089,-500.0,0.00015001,2]
[357667905,1744300233099,-500.0,0.00015001,2]
[357667906,1744300233110,-500.0,0.00015001,2]
[357667907,1744300233120,-500.0,0.00015001,2]
[357667908,1744300233131,-500.0,0.00015001,2]
[357667909,1744300233141,-500.0,0.00015001,2]
[357667910,1744300233152,-500.0,0.00015001,2]
[357667911,1744300233162,-500.0,0.00015001,2]
[357667912,1744300233173,-500.0,0.00015001,2]
[357667913,1744300233183,-500.0,0.00015001,2]
[357667914,1744300233194,-500.0,0.00015001,2]
[357667915,1744300233205,-500.0,0.00015001,2]
[357667916,1744300233215,-500.0,0.00015001,2]
[357667917,1744300233227,-500.0,0.00015001,2]
[357667918,1744300233239,-500.0,0.00015001,2]
[357667919,1744300233432,-500.0,0.00015001,2]
[357667920,1744300233443,-500.0,0.00015001,2]
[357667921,1744300233454,-500.0,0.00015001,2]
[357667922,1744300233465,-500.0,0.00015001,2]
[357667923,1744300233476,-500.0,0.00015001,2]
[357667924,1744300233486,-500.0,0.00015001,2]
[357667925,1744300233496,-500.0,0.00015001,2]
[357667926,1744300233507,-500.0,0.00015001,2]
[357667927,1744300233517,-259.40268506,0.00015001,2]
[357667928,1744300233529,-500.0,0.00015001,2]
[357667929,1744300233539,-500.0,0.00015001,2]
[357667930,1744300233549,-500.0,0.00015001,2]
[357667931,1744300233560,-500.0,0.00015001,2]
[357667932,1744300233570,-500.0,0.00015001,2]
[357667933,1744300233580,-500.0,0.00015001,2]
[357667934,1744300233590,-500.0,0.00015001,2]
[357667935,1744300233601,-177.00922822,0.00015001,2]
[357667936,1744300233611,-250.0,0.00015001,2]
[357667937,1744300233622,-187.3409426,0.00015005,2]
[357667938,1744300233633,-2234.58672165,0.00015006,2]
[357667939,1744300233644,-250.0,0.00015106,2]
[357667940,1744300233654,-99.0,0.00015112,2]
[357667941,1744300233665,-7214.6370875,0.00015202,2]
[357667942,1744300233676,-989.20918462,0.00015811,2]
[357667943,1744300233686,-401.0,0.00015904,2]
[357667944,1744300233697,-564.6771324,0.000163,2]
[357667945,1744300233709,-727.35763127,0.00016338,2]
[357667946,1744300233720,-420.0,0.00016417,2]
[357667947,1744300233730,-161.04,0.00016428,2]
[357667948,1744300233741,-200.0,0.00016428,2]
[357667949,1744300233752,-151.0,0.00016428,2]
[357667950,1744300233763,-17124.41771795,0.00016437,2]
[357667975,1744300238736,-1150.60243313,0.00016437,2]
[357667976,1744300238749,-205.6269469,0.00016437,2]
[357667977,1744300238759,-500.0,0.00016437,2]
[357667978,1744300238769,-211.710977,0.00016438,2]
[357667979,1744300238779,-500.0,0.00016438,2]
[357667980,1744300238792,-181.79343061,0.00016438,2]
[357667981,1744300238804,-363.48422814,0.00016438,2]
[357667982,1744300238813,-500.0,0.00016438,2]
[357667983,1744300238823,-500.0,0.00016438,2]
[357667984,1744300238833,-500.0,0.00016438,2]
[357667985,1744300238843,-500.0,0.00016438,2]
[357667986,1744300238853,-500.0,0.00016438,2]
[357667988,1744300238863,-500.0,0.00016438,2]
[357667989,1744300238872,-216.24324765,0.00016438,2]
[357667990,1744300238885,-954.20543836,0.00016438,2]
[357667992,1744300238896,-195.55131399,0.00016438,2]
[357667994,1744300238906,-787.65,0.00016438,2]
[357667996,1744300238916,-1382.27,0.00016438,2]
[357667997,1744300238926,-286.99024853,0.00016438,2]
[357667998,1744300238938,-213.00975147,0.00016438,2]
[357667999,1744300238948,-500.0,0.00016438,2]
[357668000,1744300238958,-182.34887402,0.00016438,2]
[357668001,1744300238975,-317.65112598,0.00016438,2]
[357668002,1744300238985,-500.0,0.00016438,2]
[357668003,1744300238995,-500.0,0.00016438,2]
[357668004,1744300239005,-500.0,0.00016438,2]
[357668005,1744300239015,-151.0,0.00016438,2]
[357668006,1744300239026,-500.0,0.00016438,2]
[357668007,1744300239042,-500.0,0.00016438,2]
[357668008,1744300239053,-500.0,0.00016438,2]
[357668009,1744300239063,-627.05,0.00016438,2]
[357668010,1744300239074,-500.0,0.00016438,2]
[357668011,1744300239084,-500.0,0.00016438,2]
[357668012,1744300239095,-500.0,0.00016438,2]
[357668013,1744300239107,-500.0,0.00016438,2]
[357668014,1744300239117,-500.0,0.00016438,2]
[357668015,1744300239128,-514.44197869,0.00016438,2]
[357668016,1744300239138,-500.0,0.00016438,2]
[357668017,1744300239149,-500.0,0.00016438,2]
[357668018,1744300239160,-500.0,0.00016438,2]
[357668019,1744300239171,-500.0,0.00016438,2]
[357668020,1744300239181,-500.0,0.00016438,2]
[357668021,1744300239192,-523.49,0.00016438,2]
[357668022,1744300239202,-500.0,0.00016438,2]
[357668023,1744300239213,-500.0,0.00016438,2]
[357668024,1744300239223,-500.0,0.00016438,2]
[357668025,1744300239236,-849.25,0.00016438,2]
[357668026,1744300239250,-992.71,0.00016438,2]
[357668027,1744300239260,-500.0,0.00016438,2]
[357668028,1744300239270,-702.89,0.00016438,2]
[357668029,1744300239280,-500.0,0.00016438,2]
[357668030,1744300239298,-500.0,0.00016438,2]
[357668031,1744300239309,-500.0,0.00016438,2]
[357668032,1744300239320,-500.0,0.00016438,2]
[357668033,1744300239330,-500.0,0.00016438,2]
[357668034,1744300239340,-500.0,0.00016438,2]
[357668035,1744300239351,-500.0,0.00016438,2]
[357668036,1744300239361,-500.0,0.00016438,2]
[357668037,1744300239371,-716.71,0.00016438,2]
[357668038,1744300239381,-616.54479772,0.00016438,2]
[357668039,1744300239391,-668.45,0.00016438,2]
[357668040,1744300239566,-500.0,0.00016438,2]
[357668041,1744300239578,-500.0,0.00016438,2]
[357668042,1744300239589,-500.0,0.00016438,2]
[357668043,1744300239600,-870.3,0.00016438,2]
[357668044,1744300239611,-500.0,0.00016438,2]
[357668045,1744300239621,-690.7,0.00016438,2]
[357668046,1744300239632,-611.48405455,0.00016438,2]
[357668047,1744300239642,-500.0,0.00016438,2]
[357668048,1744300239652,-500.0,0.00016438,2]
[357668049,1744300239662,-500.0,0.00016438,2]
[357668050,1744300239672,-500.0,0.00016438,2]
[357668051,1744300239682,-556.99,0.00016438,2]
[357668052,1744300239692,-500.0,0.00016438,2]
[357668053,1744300239703,-500.0,0.00016438,2]
[357668054,1744300239713,-668.39,0.00016438,2]
[357668055,1744300239723,-500.0,0.00016438,2]
[357668056,1744300239732,-500.0,0.00016438,2]
[357668057,1744300239742,-500.0,0.00016438,2]
[357668058,1744300239753,-541.40352438,0.00016438,2]
[357668059,1744300239762,-500.0,0.00016438,2]
[357668060,1744300239772,-1619.06,0.00016438,2]
[357668061,1744300239787,-500.0,0.00016438,2]
[357668062,1744300239797,-613.75,0.00016438,2]
[357668063,1744300239807,-500.0,0.00016438,2]
[357668064,1744300239818,-500.0,0.00016438,2]
[357668065,1744300239828,-763.3,0.00016438,2]
[357668066,1744300239838,-1061.84,0.00016438,2]
[357668067,1744300239848,-242.41392502,0.00016438,2]
[357668068,1744300239858,-430.77219412,0.00016438,2]
[357668069,1744300239868,-500.0,0.00016438,2]
[357668070,1744300239878,-500.0,0.00016438,2]
[357668071,1744300239888,-1007.64,0.00016438,2]
[357668072,1744300239898,-500.0,0.00016438,2]
[357668073,1744300239908,-500.0,0.00016438,2]
[357668074,1744300239918,-629.73151411,0.00016438,2]
[357668075,1744300239929,-500.0,0.00016438,2]
[357668076,1744300239939,-500.0,0.00016438,2]
[357668077,1744300239949,-500.0,0.00016438,2]
[357668078,1744300239958,-500.0,0.00016438,2]
[357668079,1744300239969,-500.0,0.00016438,2]
[357668080,1744300239979,-500.0,0.00016438,2]
[357668081,1744300239988,-326.59813599,0.00016438,2]
[357668082,1744300239998,-283.68645942,0.00016438,2]
[357668083,1744300240008,-500.0,0.00016438,2]
[357668084,1744300240018,-500.0,0.00016438,2]
[357668085,1744300240028,-500.0,0.00016438,2]
[357668086,1744300240042,-500.0,0.00016438,2]
[357668087,1744300240052,-500.0,0.00016438,2]
[357668088,1744300240063,-427.0,0.00016438,2]
[357668089,1744300240074,-500.0,0.00016438,2]
[357668090,1744300240083,-500.0,0.00016438,2]
[357668091,1744300240093,-500.0,0.00016438,2]
[357668092,1744300240103,-500.0,0.00016438,2]
[357668093,1744300240113,-569.55,0.00016438,2]
[357668094,1744300240123,-500.0,0.00016438,2]
[357668095,1744300240133,-604.68,0.00016438,2]
[357668096,1744300240143,-500.0,0.00016438,2]
[357668097,1744300240153,-500.0,0.00016438,2]
[357668098,1744300240163,-500.0,0.00016438,2]
[357668099,1744300240172,-500.0,0.00016438,2]
[357668100,1744300240182,-379.58,0.00016438,2]
[357668101,1744300240192,-500.0,0.00016438,2]
[357668102,1744300240202,-500.0,0.00016438,2]
[357668103,1744300240212,-500.0,0.00016438,2]
[357668104,1744300240223,-506.17,0.00016438,2]
[357668105,1744300240239,-509.48649973,0.00016438,2]
[357668107,1744300240249,-500.0,0.00016438,2]
[357668109,1744300240260,-500.0,0.00016438,2]
[357668110,1744300240271,-500.0,0.00016438,2]
[357668111,1744300240281,-500.0,0.00016438,2]
[357668112,1744300240293,-500.0,0.00016438,2]
[357668113,1744300240302,-3875.63,0.00016438,2]
[357668114,1744300240312,-1354.52,0.00016438,2]
[357668115,1744300240323,-500.0,0.00016438,2]
[357668116,1744300240333,-1254.54,0.00016438,2]
[357668117,1744300240342,-300.0,0.00016438,2]
[357668118,1744300240352,-2808.14,0.00016438,2]
[357668119,1744300240362,-500.0,0.00016438,2]
[357668120,1744300240372,-500.0,0.00016438,2]
[357668121,1744300240381,-500.0,0.00016438,2]
[357668122,1744300240391,-1916.54,0.00016438,2]
[357668125,1744300240401,-730.74,0.00016438,2]
[357668127,1744300240411,-500.0,0.00016438,2]
[357668128,1744300240421,-500.0,0.00016438,2]
[357668129,1744300240430,-500.0,0.00016438,2]
[357668130,1744300240440,-293.03681986,0.00016438,2]
[357668131,1744300240449,-500.0,0.00016438,2]
[357668132,1744300240459,-500.0,0.00016438,2]
[357668133,1744300240469,-500.0,0.00016438,2]
[357668134,1744300240479,-500.0,0.00016438,2]
[357668135,1744300240488,-500.0,0.00016438,2]
[357668136,1744300240498,-569.63,0.00016438,2]
[357668137,1744300240507,-500.0,0.00016438,2]
[357668138,1744300240517,-500.0,0.00016438,2]
[357668139,1744300240527,-500.0,0.00016438,2]
[357668140,1744300240538,-997.27,0.00016438,2]
[357668141,1744300240548,-500.0,0.00016438,2]
[357668142,1744300240558,-455.80204766,0.00016438,2]
[357668143,1744300240568,-502.32,0.00016438,2]
[357668145,1744300240578,-500.0,0.00016438,2]
[357668147,1744300240587,-563.14,0.00016438,2]
[357668149,1744300240598,-906.26,0.00016438,2]
[357668151,1744300240608,-1252.73,0.00016438,2]
[357668153,1744300240618,-646.75,0.00016438,2]
[357668154,1744300240629,-500.0,0.00016438,2]
[357668155,1744300240638,-598.26087802,0.00016438,2]
[357668156,1744300240648,-593.03,0.00016438,2]
[357668157,1744300240659,-556.36,0.00016438,2]
[357668158,1744300240669,-500.0,0.00016438,2]
[357668160,1744300240679,-784.57,0.00016438,2]
[357668161,1744300240688,-500.0,0.00016438,2]
[357668162,1744300240698,-500.0,0.00016438,2]
[357668163,1744300240708,-500.0,0.00016438,2]
[357668164,1744300240718,-500.0,0.00016438,2]
[357668165,1744300240727,-2462.41,0.00016438,2]
[357668166,1744300240737,-500.0,0.00016438,2]
[357668167,1744300240746,-686.16,0.00016438,2]
[357668168,1744300240756,-500.0,0.00016438,2]
[357668169,1744300240765,-711.94,0.00016438,2]
[357668170,1744300240774,-500.0,0.00016438,2]
[357668172,1744300240787,-500.0,0.00016438,2]
[357668173,1744300240797,-500.0,0.00016438,2]
[357668174,1744300240807,-500.0,0.00016438,2]
[357668175,1744300240817,-500.0,0.00016438,2]
[357668176,1744300240826,-500.0,0.00016438,2]
[357668177,1744300240837,-500.0,0.00016438,2]
[357668178,1744300240847,-609.17,0.00016438,2]
[357668179,1744300240856,-500.0,0.00016438,2]
[357668180,1744300240866,-987.08,0.00016438,2]
[357668181,1744300240876,-1585.3,0.00016438,2]
[357668182,1744300240886,-500.0,0.00016438,2]
[357668183,1744300240896,-500.0,0.00016438,2]
[357668184,1744300240905,-500.0,0.00016438,2]
[357668185,1744300240915,-1117.46,0.00016438,2]
[357668186,1744300240925,-500.0,0.00016438,2]
[357668187,1744300240935,-151.0,0.00016438,2]
[357668188,1744300240946,-151.0,0.00016438,2]
[357668189,1744300240957,-500.0,0.00016438,2]
[357668190,1744300240967,-151.0,0.00016438,2]
[357668191,1744300240978,-627.08,0.00016438,2]
[357668192,1744300240988,-151.0,0.00016438,2]
[357668193,1744300240999,-500.0,0.00016438,2]
[357668194,1744300241009,-500.0,0.00016438,2]
[357668195,1744300241018,-164.988248,0.00016438,2]
[357668196,1744300241028,-500.0,0.00016438,2]
[357668197,1744300241040,-151.0,0.00016438,2]
[357668198,1744300241050,-208.46,0.00016438,2]
[357668199,1744300241060,-151.0,0.00016438,2]
[357668200,1744300241070,-500.0,0.00016438,2]
[357668201,1744300241080,-151.0,0.00016438,2]
[357668202,1744300241091,-151.0,0.00016438,2]
[357668203,1744300241101,-151.0,0.00016438,2]
[357668204,1744300241110,-500.0,0.00016438,2]
[357668205,1744300241120,-500.0,0.00016438,2]
[357668206,1744300241130,-151.0,0.00016438,2]
[357668207,1744300241139,-151.0,0.00016438,2]
[357668208,1744300241148,-269.269876,0.00016438,2]
[357668209,1744300241157,-500.0,0.00016438,2]
[357668210,1744300241167,-1314.44,0.00016438,2]
[357668211,1744300241177,-500.0,0.00016438,2]